fUSD/lending_fUSD_20240827
["ID","MTS","AMOUNT","RATE_DAILY","PERIOD"]
[336376341,1724796636977,-6058.13,0.00010999,2]
[336376342,1724796636986,-6058.13,0.00010999,2]
[336376343,1724796636998,-6058.25,0.00010999,2]
[336376344,1724796637007,-4707.67,0.00010999,2]
[336376345,1724796637017,-4707.67,0.00010999,2]
[336376346,1724796637029,-4707.67,0.00010999,2]
[336376347,1724796637038,-4707.67,0.00010999,2]
[336376348,1724796637047,-4707.67,0.00010999,2]
[336376349,1724796637058,-4707.67,0.00010999,2]
[336376350,1724796637068,-4707.67,0.00010999,2]
[336376351,1724796637078,-4707.67,0.00010999,2]
[336376352,1724796637087,-4707.67,0.00010999,2]
[336376353,1724796637099,-4707.67,0.00010999,2]
[336376354,1724796637109,-4707.67,0.00010999,2]
[336376355,1724796637119,-11628.49,0.00010999,2]
[336376356,1724796637128,-4707.67,0.00010999,2]
[336376357,1724796637137,-11628.49,0.00010999,2]
[336376358,1724796637147,-4707.67,0.00010999,2]
[336376359,1724796637156,-11628.49,0.00010999,2]
[336376360,1724796637165,-4707.67,0.00010999,2]
[336376361,1724796637175,-11628.49,0.00010999,2]
[336376362,1724796637184,-4707.67,0.00010999,2]
[336376363,1724796637193,-4707.67,0.00010999,2]
[336376364,1724796637203,-11628.49,0.00010999,2]
[336376365,1724796637217,-4707.79,0.00010999,2]
[336376366,1724796637226,-11628.49,0.00010999,2]
[336376367,1724796637235,-11628.49,0.00010999,2]
[336376368,1724796637244,-11628.49,0.00010999,2]
[336376369,1724796637254,-11628.49,0.00010999,2]
[336376370,1724796637263,-11628.49,0.00010999,2]
[336376371,1724796637273,-11628.49,0.00010999,2]
[336376372,1724796637283,-11628.49,0.00010999,2]
[336376373,1724796637293,-11628.49,0.00010999,2]
[336376374,1724796637302,-11628.49,0.00010999,2]
[336376375,1724796637311,-11628.49,0.00010999,2]
[336376376,1724796637320,-11628.49,0.00010999,2]
[336376377,1724796637330,-11628.51,0.00010999,2]
[336376378,1724796637339,-1346885.92598794,0.00011,2]
[336376379,1724796637349,-273671.97605724,0.00011,2]
[336376380,1724796637366,-484.68,0.00011,2]
[336376381,1724796637378,-258.0654015,0.00011,2]
[336376382,1724796637390,-287.79859465,0.00011,2]
[336376383,1724796637437,-500.0,0.00010958,2]
[336376384,1724796637447,-500.0,0.00010958,2]
[336376385,1724796637457,-500.0,0.00010958,2]
[336376386,1724796637475,-500.0,0.00010958,2]
[336376387,1724796637484,-183.23314245,0.00010958,2]
[336376388,1724796637494,-598.82052734,0.00010958,2]
[336376389,1724796637503,-42359.76727124,0.00011,2]
[336376390,1724796637515,-255.5570155,0.00011,2]
[336376393,1724796638228,-723.7000812,0.00010566,2]
[336376395,1724796638239,-1199.68558188,0.00010566,2]
[336376397,1724796638249,-582.0566444,0.000109,2]
[336376400,1724796638259,-500.0,0.00010958,2]
[336376402,1724796638269,-500.0,0.00010958,2]
[336376405,1724796638279,-430.6038077,0.00010958,2]
[336376411,1724796638359,-69.3961923,0.00010958,2]
[336376412,1724796638368,-1500.0,0.00010959,2]
[336376413,1724796638378,-130380.81437558,0.00011,2]
[336376414,1724796638394,-3248.62773549,0.00011,2]
[336376415,1724796638516,-5038.73658722,0.00010999,2]
[336376416,1724796638526,-1025529.34925419,0.00011,2]
[336376417,1724796638536,-1881054.73612278,0.00011,2]
[336376418,1724796638547,-407964.5809444,0.00011,2]
[336376419,1724796638559,-1922.13,0.00011,2]
[336376420,1724796638574,-1496.7,0.00011,2]
[336376421,1724796638585,-313.147835,0.00011,2]
[336376581,1724796640262,-500.0,0.00010958,2]
[336376583,1724796640272,-500.0,0.00010997,2]
[336376585,1724796640282,-500.0,0.00010998,2]
[336376587,1724796640293,-6159.00000018,0.00011,2]
[336376589,1724796640305,-199496.60798903,0.00011,2]
[336376600,1724796640395,-318587.4722916,0.00011,2]
[336376602,1724796640405,-443474.48971289,0.00011,2]
[336376603,1724796640415,-6000.0,0.00011,3]
[336376604,1724796640424,-911315.66346875,0.00011,2]
[336376605,1724796640434,-257795.60970496,0.00011,2]
[336376606,1724796640444,-5991206.53922518,0.00011,2]
[336376607,1724796640453,-243241.4412059,0.00011,2]
[336376608,1724796640466,-178.519894,0.00011,2]
[336376609,1724796640475,-315814.38788962,0.00011,2]
[336376610,1724796640484,-150.0,0.00011,2]
[336376611,1724796640494,-300.0,0.00011,2]
[336376612,1724796640505,-212.0,0.00011,2]
[336376613,1724796640515,-212.0,0.00011,2]
[336376614,1724796640525,-212.0,0.00011,2]
[336376615,1724796640536,-212.0,0.00011,2]
[336376616,1724796640546,-212.0,0.00011,2]
[336376617,1724796640558,-212.0,0.00011,2]
[336376618,1724796640567,-212.0,0.00011,2]
[336376619,1724796640578,-212.0,0.00011,2]
[336376621,1724796640588,-212.0,0.00011,2]
[336376623,1724796640599,-212.0,0.00011,2]
[336376625,1724796640610,-212.0,0.00011,2]
[336376628,1724796640620,-212.0,0.00011,2]
[336376630,1724796640631,-151.0,0.00011,2]
[336376632,1724796640642,-500.0,0.00011,2]
[336376634,1724796640653,-151.0,0.00011,2]
[336376636,1724796640662,-2000.0,0.00011,2]
[336376638,1724796640671,-2000.0,0.00011,2]
[336376640,1724796640681,-2000.0,0.00011,2]
[336376642,1724796640692,-250.0,0.00011,2]
[336376644,1724796640701,-273.424662,0.00011,2]
[336376646,1724796640710,-200.0,0.00011,2]
[336376647,1724796640726,-200.0,0.00011,2]
[336376649,1724796640735,-200.0,0.00011,2]
[336376652,1724796640745,-200.0,0.00011,2]
[336376654,1724796640754,-200.0,0.00011,2]
[336376656,1724796640764,-200.0,0.00011,2]
[336376657,1724796640773,-200.0,0.00011,2]
[336376659,1724796640782,-346.0,0.00011,2]
[336376662,1724796640793,-346.0,0.00011,2]
[336376664,1724796640802,-346.0,0.00011,2]
[336376666,1724796640811,-346.0,0.00011,2]
[336376668,1724796640821,-346.0,0.00011,2]
[336376669,1724796640829,-346.0,0.00011,2]
[336376671,1724796640838,-346.0,0.00011,2]
[336376673,1724796640847,-346.0,0.00011,2]
[336376675,1724796640856,-346.0,0.00011,2]
[336376677,1724796640865,-346.0,0.00011,2]
[336376679,1724796640874,-346.0,0.00011,2]
[336376681,1724796640884,-346.0,0.00011,2]
[336376683,1724796640893,-346.0,0.00011,2]
[336376685,1724796640902,-346.0,0.00011,2]
[336376687,1724796640911,-346.0,0.00011,2]
[336376689,1724796640920,-151.0,0.00011,2]
[336376691,1724796640929,-151.0,0.00011,2]
[336376693,1724796640938,-151.0,0.00011,2]
[336376695,1724796640948,-227.873123,0.00011,2]
[336376697,1724796640957,-151.0,0.00011,2]
[336376699,1724796640970,-151.0,0.00011,2]
[336376701,1724796640978,-1052.67469645,0.00011,2]
[336376703,1724796640987,-162.716332,0.00011,2]
[336376704,1724796640997,-162.716332,0.00011,2]
[336376706,1724796641006,-162.716332,0.00011,2]
[336376708,1724796641015,-162.716332,0.00011,2]
[336376710,1724796641027,-162.716332,0.00011,2]
[336376712,1724796641036,-162.716332,0.00011,2]
[336376714,1724796641046,-151.0,0.00011,2]
[336376716,1724796641056,-151.0,0.00011,2]
[336376718,1724796641065,-151.0,0.00011,2]
[336376720,1724796641074,-151.0,0.00011,2]
[336376722,1724796641086,-151.0,0.00011,2]
[336376725,1724796641098,-248.106751,0.00011,2]
[336376727,1724796641108,-248.106751,0.00011,2]
[336376728,1724796641117,-248.106751,0.00011,2]
[336376730,1724796641127,-151.0,0.00011,2]
[336376732,1724796641136,-151.0,0.00011,2]
[336376734,1724796641145,-151.0,0.00011,2]
[336376736,1724796641155,-248.106751,0.00011,2]
[336376738,1724796641165,-248.106751,0.00011,2]
[336376740,1724796641175,-248.106751,0.00011,2]
[336376742,1724796641186,-151.0,0.00011,2]
[336376744,1724796641196,-151.0,0.00011,2]
[336376746,1724796641206,-151.0,0.00011,2]
[336376748,1724796641220,-151.0,0.00011,2]
[336376750,1724796641231,-151.0,0.00011,2]
[336376752,1724796641241,-151.0,0.00011,2]
[336376754,1724796641250,-151.0,0.00011,2]
[336376756,1724796641259,-151.0,0.00011,2]
[336376758,1724796641270,-151.0,0.00011,2]
[336376760,1724796641280,-258.887194,0.00011,2]
[336376762,1724796641290,-258.887194,0.00011,2]
[336376764,1724796641300,-258.887194,0.00011,2]
[336376766,1724796641309,-258.887194,0.00011,2]
[336376768,1724796641318,-258.887194,0.00011,2]
[336376770,1724796641328,-258.887194,0.00011,2]
[336376772,1724796641338,-600.0,0.00011,2]
[336376774,1724796641347,-151.0,0.00011,2]
[336376776,1724796641356,-151.0,0.00011,2]
[336376778,1724796641366,-151.0,0.00011,2]
[336376780,1724796641375,-151.0,0.00011,2]
[336376781,1724796641384,-151.0,0.00011,2]
[336376783,1724796641393,-151.0,0.00011,2]
[336376785,1724796641403,-151.0,0.00011,2]
[336376786,1724796641413,-151.0,0.00011,2]
[336376787,1724796641422,-151.0,0.00011,2]
[336376789,1724796641586,-151.0,0.00011,2]
[336376791,1724796641595,-151.0,0.00011,2]
[336376793,1724796641605,-151.0,0.00011,2]
[336376795,1724796641615,-151.0,0.00011,2]
[336376797,1724796641624,-151.0,0.00011,2]
[336376799,1724796641633,-151.0,0.00011,2]
[336376801,1724796641642,-151.0,0.00011,2]
[336376803,1724796641651,-3879.99,0.00011,2]
[336376805,1724796641661,-171.649682,0.00011,2]
[336376807,1724796641670,-171.649682,0.00011,2]
[336376809,1724796641679,-171.649682,0.00011,2]
[336376811,1724796641688,-171.649682,0.00011,2]
[336376813,1724796641697,-171.649682,0.00011,2]
[336376814,1724796641705,-171.649682,0.00011,2]
[336376816,1724796641718,-151.0,0.00011,2]
[336376818,1724796641727,-151.0,0.00011,2]
[336376820,1724796641737,-151.0,0.00011,2]
[336376822,1724796641746,-151.0,0.00011,2]
[336376824,1724796641755,-151.0,0.00011,2]
[336376826,1724796641764,-151.0,0.00011,2]
[336376828,1724796641774,-151.0,0.00011,2]
[336376830,1724796641783,-151.0,0.00011,2]
[336376832,1724796641792,-151.0,0.00011,2]
[336376834,1724796641801,-4171.562588,0.00011,2]
[336376836,1724796641810,-4171.562588,0.00011,2]
[336376838,1724796641819,-4171.562588,0.00011,2]
[336376840,1724796641828,-4171.562588,0.00011,2]
[336376842,1724796641838,-4171.562588,0.00011,2]
[336376844,1724796641847,-4171.562588,0.00011,2]
[336376846,1724796641858,-151.0,0.00011,2]
[336376848,1724796641867,-151.0,0.00011,2]
[336376850,1724796641877,-151.0,0.00011,2]
[336376852,1724796641887,-339.13518,0.00011,2]
[336376854,1724796641896,-339.13518,0.00011,2]
[336376856,1724796641905,-151.0,0.00011,2]
[336376858,1724796641915,-339.13518,0.00011,2]
[336376860,1724796641925,-151.0,0.00011,2]
[336376862,1724796641934,-235.080838,0.00011,2]
[336376864,1724796641943,-339.13518,0.00011,2]
[336376866,1724796641953,-339.13518,0.00011,2]
[336376868,1724796641964,-339.13518,0.00011,2]
[336376870,1724796641979,-254.16344,0.00011,2]
[336376872,1724796641989,-151.0,0.00011,2]
[336376873,1724796642000,-151.0,0.00011,2]
[336376875,1724796642010,-151.0,0.00011,2]
[336376877,1724796642022,-450.2,0.00011,2]
[336376879,1724796642031,-500.0,0.00011,2]
[336376881,1724796642041,-173.0,0.00011,2]
[336376883,1724796642051,-151.403905,0.00011,2]
[336376885,1724796642059,-420.0,0.00011009,2]
[336376887,1724796642069,-500.0,0.00011027,2]
[336376889,1724796642080,-500.0,0.00011055,2]
[336376891,1724796642089,-500.0,0.00011068,2]
[336376893,1724796642100,-500.0,0.00011068,2]
[336376895,1724796642110,-600.0,0.00011068,2]
[336376897,1724796642121,-346.0,0.0001108,2]
[336376899,1724796642132,-500.0,0.00011082,2]
[336376901,1724796642141,-158.5,0.00011083,2]
[336376903,1724796642151,-328.0,0.00011097,2]
[336376905,1724796642160,-150.0,0.000111,2]
[336376907,1724796642170,-301.15,0.000111,2]
[336376909,1724796642180,-226.0,0.000111,2]
[336376911,1724796642190,-358.0,0.000111,2]
[336376913,1724796642200,-1000.0,0.000111,2]
[336376915,1724796642209,-500.0,0.0001111,2]
[336376917,1724796642221,-500.0,0.00011137,2]
[336376919,1724796642230,-500.0,0.00011164,2]
[336376921,1724796642240,-500.0,0.00011192,2]
[336376923,1724796642250,-150.0,0.000112,2]
[336376925,1724796642259,-150.0,0.000112,2]
[336376927,1724796642268,-150.0,0.000112,2]
[336376929,1724796642277,-420.0,0.00011219,2]
[336376931,1724796642286,-500.0,0.00011219,2]
[336376933,1724796642295,-173.0,0.00011233,2]
[336376935,1724796642304,-500.0,0.00011247,2]
[336376937,1724796642313,-500.0,0.00011273,2]
[336376939,1724796642322,-500.0,0.00011274,2]
[336376941,1724796642331,-500.0,0.00011301,2]
[336376942,1724796642340,-500.0,0.00011329,2]
[336376944,1724796642349,-197.37966561,0.00011336,2]
[336376946,1724796642358,-500.0,0.00011356,2]
[336376948,1724796642367,-500.0,0.00011384,2]
[336376950,1724796642376,-412.21991848,0.00011391,2]
[336376952,1724796642385,-500.0,0.00011411,2]
[336376954,1724796642395,-500.0,0.00011438,2]
[336376956,1724796642405,-384.08921,0.0001144,2]
[336376958,1724796642415,-500.0,0.00011466,2]
[336376960,1724796642424,-500.0,0.00011493,2]
[336376962,1724796642433,-811.44562014,0.000115,2]
[336376964,1724796642443,-173.0,0.00011507,2]
[336376966,1724796642452,-1000.0,0.00011521,2]
[336376968,1724796642461,-500.0,0.00011521,2]
[336376970,1724796642475,-255.0,0.00011545,2]
[336376972,1724796642485,-500.55917596,0.00011547,2]
[336376974,1724796642494,-500.0,0.00011548,2]
[336376976,1724796642503,-500.0,0.00011575,2]
[336376978,1724796642512,-500.0,0.00011603,2]
[336376980,1724796642522,-500.0,0.0001163,2]
[336376982,1724796642531,-500.0,0.00011658,2]
[336376984,1724796642541,-16921.25934229,0.00011922,2]
[336376986,1724796642551,-150.0,0.0001198,2]
[336376988,1724796642560,-2000.0,0.00012,2]
[336376990,1724796642569,-2000.0,0.00012,2]
[336376992,1724796642578,-2000.0,0.00012,2]
[336376994,1724796642587,-192.10684871,0.00012,2]
[336376996,1724796642598,-8969.1366275,0.00012,2]
[336376998,1724796642607,-500.171214,0.00012,2]
[336377000,1724796642616,-433.0,0.00012,5]
[336377002,1724796642625,-6255.5522946,0.00012,2]
[336377004,1724796642634,-10000.0,0.00012,2]
[336377006,1724796642643,-407.63,0.00012,2]
[336377008,1724796642653,-505.79232063,0.00012,4]
[336377010,1724796642663,-1004.8,0.00012,3]
[336377012,1724796642674,-361.38,0.00012,3]
[336377014,1724796642683,-1000.0,0.00012,3]
[336377016,1724796642692,-3223.86,0.00012,2]
[336377018,1724796642701,-5000.0,0.00012,2]
[336377020,1724796642710,-6454.93520717,0.00012,4]
[336377022,1724796642722,-500.0,0.00012004,2]
[336377024,1724796642731,-1000.0,0.00012013,2]
[336377026,1724796642741,-1000.0,0.00012013,2]
[336377028,1724796642752,-1000.0,0.00012013,2]
[336377030,1724796642762,-1000.0,0.00012019,2]
[336377032,1724796642771,-1000.0,0.00012019,2]
[336377034,1724796642779,-1000.0,0.00012019,2]
[336377036,1724796642790,-1000.0,0.00012019,2]
[336377038,1724796642799,-1000.0,0.00012019,2]
[336377040,1724796642808,-1000.0,0.00012019,2]
[336377042,1724796642817,-596.94,0.00012033,2]
[336377044,1724796642826,-44457.68,0.00012055,2]
[336377046,1724796642837,-384.08921,0.0001206,2]
[336377048,1724796642846,-500.0,0.00012079,2]
[336377050,1724796642855,-378.04,0.00012079,2]
[336377052,1724796642864,-500.0,0.00012079,2]
[336377054,1724796642873,-177.0,0.00012082,2]
[336377056,1724796642883,-520.32968407,0.00012098,2]
[336377058,1724796642892,-1000.0,0.00012098,2]
[336377060,1724796642901,-1000.0,0.00012098,2]
[336377062,1724796642910,-1000.0,0.00012098,2]
[336377064,1724796642920,-587.0,0.0001211,2]
[336377066,1724796642929,-737.6,0.00012133,2]
[336377067,1724796642938,-199.33,0.00012158,2]
[336377070,1724796642947,-600.0,0.00012164,2]
[336377073,1724796642957,-244.28,0.00012172,2]
[336377075,1724796642970,-150.0,0.00012172,2]
[336377078,1724796642980,-150.0,0.00012172,2]
[336377081,1724796642989,-150.0,0.0001229,5]
[336377083,1724796643000,-150.0,0.0001229,5]
[336377085,1724796643009,-158.5,0.00012314,2]
[336377087,1724796643019,-184.66,0.00012316,2]
[336377089,1724796643030,-328.0,0.0001233,2]
[336377091,1724796643039,-299.0,0.00012341,2]
[336377093,1724796643048,-1500.0,0.00012419,2]
[336377094,1724796643057,-600.0,0.00012438,2]
[336377096,1724796643066,-596.94,0.00012458,2]
[336377098,1724796643075,-290.14161333,0.000125,2]
[336377100,1724796643084,-11120.73723874,0.0001251,2]
[336377102,1724796643093,-196.62464528,0.00012613,2]
[336377104,1724796643105,-234.52046706,0.00012649,5]
[336377109,1724796643114,-368.0,0.0001266,2]
[336377111,1724796643123,-384.08921,0.0001268,2]
[336377114,1724796643132,-3165.56311657,0.0001268,2]
[336377117,1724796643141,-442.06,0.00012694,2]
[336377120,1724796643150,-478.0,0.000128,2]
[336377123,1724796643159,-600.0,0.000128,2]
[336377127,1724796643169,-242971.0,0.00012845,2]
[336377131,1724796643178,-200.90840422,0.00012873,2]
[336377135,1724796643187,-400.19434945,0.00012873,2]
[336377139,1724796643197,-302.38430457,0.00012873,2]
[336377142,1724796643206,-405.16151493,0.00012873,2]
[336377145,1724796643218,-500.0,0.00012873,2]
[336377148,1724796643226,-596.94,0.00012884,2]
[336377150,1724796643235,-157.09,0.000129,31]
[336377154,1724796643249,-157.09,0.000129,31]
[336377157,1724796643258,-157.09,0.000129,31]
[336377160,1724796643267,-250.0,0.0001297,2]
[336377163,1724796643276,-25221.6355736,0.00012991,2]
[336377166,1724796643286,-4177.95002934,0.00013,2]
[336377169,1724796643296,-1258.0,0.00013,5]
[336377172,1724796643306,-2050.7,0.00013,2]
[336377174,1724796643315,-2050.699999,0.00013,2]
[336377176,1724796643325,-2050.699999,0.00013,2]
[336377179,1724796643335,-10000.0,0.00013,2]
[336377182,1724796643345,-10000.0,0.00013,2]
[336377185,1724796643354,-9900.0,0.00013,2]
[336377187,1724796643364,-10000.0,0.00013,2]
[336377189,1724796643375,-199.999999,0.00013,2]
[336377191,1724796643386,-162.716332,0.00013,2]
[336377193,1724796643396,-162.716332,0.00013,2]
[336377195,1724796643408,-151.0,0.00013,2]
[336377197,1724796643418,-248.106751,0.00013,2]
[336377199,1724796643429,-248.106751,0.00013,2]
[336377201,1724796643440,-258.887194,0.00013,2]
[336377203,1724796643449,-258.887194,0.00013,2]
[336377205,1724796643459,-300.0,0.00013,2]
[336377207,1724796643472,-693.55947488,0.00013,2]
[336377209,1724796643482,-300.0,0.00013,2]
[336377211,1724796643492,-178.519894,0.00013009,14]
[336377213,1724796643502,-5046.77986794,0.0001305,2]
[336377215,1724796643512,-151.0,0.0001305,2]
[336377217,1724796643522,-963.63707643,0.00013052,2]
[336377219,1724796643533,-250.0,0.0001307,2]
[336377221,1724796643543,-178.519894,0.00013079,14]
[336377223,1724796643553,-220.383788,0.00013079,14]
[336377225,1724796643563,-151.0,0.000131,2]
[336377227,1724796643573,-793.9354,0.000131,2]
[336377229,1724796643583,-793.9354,0.000131,2]
[336377231,1724796643592,-1256.4785,0.000131,2]
[336377233,1724796643602,-1256.4785,0.000131,2]
[336377235,1724796643612,-1637.5305,0.000131,2]
[336377237,1724796643622,-1637.5305,0.000131,2]
[336377239,1724796643632,-158.60167019,0.00013292,5]
[336377240,1724796643641,-478.0,0.000133,2]
[336377242,1724796643652,-151.0,0.00013308,2]
[336377244,1724796643662,-596.94,0.0001331,2]
[336377246,1724796643672,-384.08921,0.0001331,2]
[336377248,1724796643682,-823.0,0.00013321,2]
[336377250,1724796643691,-155.04464224,0.00013333,2]
[336377252,1724796643701,-737.6,0.00013347,2]
[336377254,1724796643711,-199.33,0.00013374,2]
[336377256,1724796643726,-582.26120928,0.00013421,2]
[336377258,1724796643736,-8455.0,0.00013463,7]
[336377260,1724796643745,-151.0,0.00013463,2]
[336377262,1724796643755,-500.0,0.0001348,2]
[336377264,1724796643765,-90139.27,0.000135,2]
[336377266,1724796643775,-1000.0,0.000135,2]
[336377267,1724796643784,-151.0,0.000135,2]
[336377268,1724796643794,-151.0,0.000135,2]
[336377269,1724796643804,-151.0,0.000135,2]
[336377270,1724796643814,-151.0,0.000135,2]
[336377271,1724796643823,-151.0,0.000135,2]
[336377272,1724796643833,-171.649682,0.000135,2]
[336377273,1724796643842,-171.649682,0.000135,2]
[336377274,1724796643852,-151.0,0.000135,2]
[336377275,1724796643862,-151.0,0.000135,2]
[336377276,1724796643872,-151.0,0.000135,2]
[336377277,1724796643881,-4171.562588,0.000135,2]
[336377278,1724796643890,-4171.562588,0.000135,2]
[336377280,1724796643900,-151.0,0.000135,2]
[336377282,1724796643909,-339.13518,0.000135,2]
[336377283,1724796643919,-339.13518,0.000135,2]
[336377284,1724796643928,-151.0,0.000135,2]
[336377286,1724796643938,-795.0,0.00013505,2]
[336377289,1724796643948,-2000.0,0.00013524,2]
[336377291,1724796643957,-600.0,0.00013534,2]
[336377293,1724796643974,-158.5,0.00013545,2]
[336377294,1724796643984,-328.0,0.00013563,2]
[336377296,1724796643994,-1000.0,0.00013698,2]
[336377298,1724796644005,-1000.0,0.00013698,2]
[336377300,1724796644014,-1000.0,0.00013698,2]
[336377302,1724796644025,-1000.0,0.00013698,2]
[336377304,1724796644035,-1000.0,0.00013698,2]
[336377306,1724796644045,-1000.0,0.00013698,2]
[336377308,1724796644055,-805.30083211,0.00013698,2]
[336377310,1724796644064,-1476.29,0.00013698,2]
[336377312,1724796644074,-1476.29,0.00013698,2]
[336377314,1724796644084,-1476.29,0.00013698,2]
[336377316,1724796644094,-1476.29,0.00013698,2]
[336377318,1724796644104,-1476.29,0.00013698,2]
[336377320,1724796644114,-1476.29,0.00013698,2]
[336377322,1724796644123,-1476.29,0.00013698,2]
[336377324,1724796644133,-1476.29,0.00013698,2]
[336377326,1724796644142,-1476.29,0.00013698,2]
[336377328,1724796644152,-1476.29,0.00013698,2]
[336377330,1724796644161,-1476.29,0.00013698,2]
[336377332,1724796644171,-1476.29,0.00013698,2]
[336377334,1724796644180,-1476.29,0.00013698,2]
[336377336,1724796644190,-1476.29,0.00013698,2]
[336377338,1724796644200,-1476.29,0.00013698,2]
[336377340,1724796644210,-1476.29,0.00013698,2]
[336377342,1724796644223,-1476.29,0.00013698,2]
[336377344,1724796644233,-1476.29,0.00013698,2]
[336377346,1724796644242,-1476.29,0.00013698,2]
[336377348,1724796644252,-1476.29,0.00013698,2]
[336377350,1724796644261,-1476.29,0.00013698,2]
[336377352,1724796644271,-1476.29,0.00013698,2]
[336377354,1724796644280,-1476.29,0.00013698,2]
[336377356,1724796644290,-1476.52955233,0.00013698,2]
[336377358,1724796644300,-326.28582245,0.00013698,2]
[336377360,1724796644309,-800.0,0.00013699,2]
[336377362,1724796644319,-800.0,0.00013699,2]
[336377364,1724796644328,-800.0,0.00013699,2]
[336377366,1724796644338,-800.0,0.00013699,2]
[336377368,1724796644348,-800.0,0.00013699,2]
[336377370,1724796644357,-800.0,0.00013699,2]
[336377372,1724796644366,-800.0,0.00013699,2]
[336377374,1724796644376,-800.0,0.00013699,2]
[336377376,1724796644385,-800.0,0.00013699,2]
[336377378,1724796644395,-800.0,0.00013699,2]
[336377379,1724796644404,-800.0,0.00013699,2]
[336377381,1724796644414,-856.55,0.00013699,2]
[336377383,1724796644424,-331.1,0.00013699,2]
[336377385,1724796644433,-500.0,0.00013699,2]
[336377387,1724796644442,-2336.65,0.00013699,2]
[336377389,1724796644452,-800.0,0.00013699,2]
[336377391,1724796644461,-162.051926,0.00013699,2]
[336377393,1724796644477,-162.051926,0.00013699,2]
[336377395,1724796644486,-162.051926,0.00013699,2]
[336377397,1724796644496,-162.051926,0.00013699,2]
[336377399,1724796644505,-162.051926,0.00013699,2]
[336377402,1724796644517,-162.051926,0.00013699,2]
[336377403,1724796644526,-162.051926,0.00013699,2]
[336377405,1724796644536,-162.051926,0.00013699,2]
[336377407,1724796644546,-800.0,0.00013699,2]
[336377409,1724796644555,-2946.85,0.00013699,2]
[336377411,1724796644565,-800.0,0.00013699,2]
[336377413,1724796644575,-800.0,0.00013699,2]
[336377415,1724796644584,-200.0,0.00013699,2]
[336377418,1724796644595,-2751.0,0.00013699,2]
[336377420,1724796644605,-800.0,0.00013699,2]
[336377422,1724796644615,-5269.58,0.00013699,2]
[336377424,1724796644624,-674.09,0.00013699,2]
[336377425,1724796644633,-6908.12,0.000137,2]
[336377428,1724796644643,-6908.12,0.000137,2]
[336377429,1724796644652,-6908.12,0.000137,2]
[336377431,1724796644662,-6908.12,0.000137,2]
[336377433,1724796644671,-6908.12,0.000137,2]
[336377435,1724796644680,-5000.0,0.0001371,2]
[336377437,1724796644690,-596.94,0.00013735,2]
[336377439,1724796644699,-150.0,0.0001376,2]
[336377441,1724796644709,-202.91333205,0.00013773,2]
[336377443,1724796644723,-32098.8419595,0.00013791,2]
[336377445,1724796644732,-38976.0483454,0.00013798,2]